fUSD/lending_fUSD_20260322
["ID","MTS","AMOUNT","RATE_DAILY","PERIOD"]
[408713676,1774164678241,-300.0,0.00042703,2]
[408713677,1774164678256,-302.71758979,0.00042703,2]
[408713678,1774164678271,-300.0,0.00042703,2]
[408713679,1774164678286,-300.0,0.00042703,2]
[408713680,1774164678301,-1990.0,0.00042739,120]
[408713681,1774164678316,-1536.00501364,0.0004274,14]
[408713682,1774164678331,-275.42,0.00042854,2]
[408713683,1774164678345,-817.1,0.00042854,2]
[408713684,1774164678360,-817.1,0.00042854,2]
[408713685,1774164678375,-817.1,0.00042854,2]
[408713686,1774164678389,-544.73,0.00042854,2]
[408713687,1774164678407,-272.36,0.00042854,2]
[408713688,1774164678421,-544.73,0.00042854,2]
[408713689,1774164678437,-544.73,0.00042854,2]
[408713690,1774164678453,-544.73,0.00042854,2]
[408713691,1774164678468,-272.36,0.00042854,2]
[408713692,1774164678482,-10691.69023037,0.000429,7]
[408713693,1774164678497,-339.42519009,0.00043,7]
[408713694,1774164678511,-339.42519009,0.00043,7]
[408713695,1774164678527,-25325.70094266,0.00043,15]
[408713696,1774164678542,-1022.0,0.00043,30]
[408713697,1774164678557,-1027.0,0.00043,30]
[408713698,1774164678572,-5530.85303,0.00043,7]
[408713699,1774164678587,-778.0,0.00043,120]
[408713700,1774164678601,-5554.0,0.00043,120]
[408713701,1774164678616,-1460.56,0.00043,30]
[408713702,1774164678631,-1631.03139984,0.00043,2]
[408713703,1774164678646,-1990.0,0.00043013,120]
[408713704,1774164678661,-156.80204225,0.00043167,2]
[408713705,1774164678676,-1990.0,0.00043287,120]
[408713706,1774164678691,-150.0,0.00043434,120]
[408713707,1774164678704,-156.80204225,0.00043441,2]
[408713708,1774164678718,-119033.52915273,0.00043444,4]
[408713709,1774164678852,-4673.14336475,0.00043453,91]
[408713710,1774164678863,-4242.50588567,0.000435,30]
[408713711,1774164678872,-150.0,0.0004356,30]
[408713712,1774164678881,-396.32047601,0.00043561,120]
[408713713,1774164678891,-1990.0,0.00043561,120]
[408713714,1774164678900,-160259.0,0.0004365,60]
[408713715,1774164678910,-150.0,0.00043698,30]
[408713716,1774164678919,-499.39,0.00043703,120]
[408713717,1774164678929,-278.43,0.00043703,120]
[408713718,1774164678938,-1240.85,0.00043703,120]
[408713719,1774164678948,-1408.18,0.0004371,120]
[408713720,1774164678957,-156.80204225,0.00043715,2]
[408713721,1774164678967,-171.32661883,0.00043748,7]
[408713722,1774164678976,-525.74,0.00043775,2]
[408713723,1774164678985,-438.17,0.00043775,2]
[408713724,1774164678995,-1093.0,0.00043799,30]
[408713725,1774164679004,-1990.0,0.00043835,120]
[408713726,1774164679023,-151.0,0.00043836,120]
[408713727,1774164679043,-151.0,0.00043836,120]
[408713728,1774164679067,-151.0,0.00043836,120]
[408713729,1774164679089,-203.74,0.00043836,120]
[408713730,1774164679110,-151.0,0.00043836,120]
[408713731,1774164679132,-153.980036,0.00043836,120]
[408713732,1774164679154,-158.640375,0.00043836,120]
[408713733,1774164679175,-151.0,0.00043836,120]
[408713734,1774164679198,-151.0,0.00043836,120]
[408713735,1774164679222,-151.0,0.00043836,120]
[408713736,1774164679246,-182.828435,0.00043836,120]
[408713737,1774164679268,-151.0,0.00043836,60]
[408713738,1774164679291,-151.0,0.00043836,60]
[408713739,1774164679314,-151.0,0.00043836,60]
[408713740,1774164679337,-151.0,0.00043836,60]
[408713741,1774164679357,-151.0,0.00043836,60]
[408713742,1774164679368,-151.0,0.00043836,60]
[408713743,1774164679377,-151.0,0.00043836,60]
[408713744,1774164679388,-151.0,0.00043836,60]
[408713745,1774164679399,-151.0,0.00043836,60]
[408713746,1774164679413,-151.0,0.00043836,60]
[408713747,1774164679423,-175.699992,0.00043836,60]
[408713748,1774164679434,-613.638495,0.00043836,120]
[408713749,1774164679445,-613.638495,0.00043836,120]
[408713750,1774164679456,-613.638495,0.00043836,120]
[408713751,1774164679465,-613.638495,0.00043836,120]
[408713752,1774164679476,-613.638495,0.00043836,120]
[408713753,1774164679485,-613.638495,0.00043836,120]
[408713754,1774164679495,-613.638495,0.00043836,120]
[408713755,1774164679505,-613.638495,0.00043836,120]
[408713756,1774164679515,-613.638495,0.00043836,120]
[408713757,1774164679538,-613.638495,0.00043836,120]
[408713758,1774164679561,-613.638495,0.00043836,120]
[408713759,1774164679580,-613.638495,0.00043836,120]
[408713760,1774164679591,-613.638495,0.00043836,120]
[408713761,1774164679601,-613.638495,0.00043836,120]
[408713762,1774164679613,-613.638495,0.00043836,120]
[408713763,1774164679624,-613.638495,0.00043836,120]
[408713764,1774164679635,-613.638495,0.00043836,120]
[408713765,1774164679645,-613.638495,0.00043836,120]
[408713766,1774164679657,-613.638495,0.00043836,120]
[408713767,1774164679667,-613.638495,0.00043836,120]
[408713768,1774164679678,-151.0,0.00043836,120]
[408713769,1774164679689,-151.0,0.00043836,120]
[408713770,1774164679700,-151.0,0.00043836,120]
[408713771,1774164679711,-151.0,0.00043836,120]
[408713772,1774164679722,-151.0,0.00043836,120]
[408713773,1774164679734,-151.0,0.00043836,120]
[408713774,1774164679745,-151.0,0.00043836,120]
[408713775,1774164679755,-151.0,0.00043836,120]
[408713776,1774164679767,-266.593982,0.00043836,120]
[408713777,1774164679778,-156.311848,0.00043836,120]
[408713778,1774164679788,-158.781396,0.00043836,120]
[408713779,1774164679799,-158.781396,0.00043836,120]
[408713780,1774164679810,-158.781396,0.00043836,120]
[408713781,1774164679821,-158.781396,0.00043836,120]
[408713782,1774164679832,-158.781396,0.00043836,120]
[408713783,1774164679842,-158.781396,0.00043836,120]
[408713784,1774164679852,-158.781396,0.00043836,120]
[408713785,1774164679862,-158.781396,0.00043836,120]
[408713786,1774164679873,-158.781396,0.00043836,120]
[408713787,1774164679883,-158.781396,0.00043836,120]
[408713788,1774164679896,-158.781396,0.00043836,120]
[408713789,1774164679907,-158.781396,0.00043836,120]
[408713790,1774164679917,-158.781396,0.00043836,120]
[408713791,1774164679929,-158.781396,0.00043836,120]
[408713792,1774164679943,-158.781396,0.00043836,120]
[408713793,1774164679952,-158.781396,0.00043836,120]
[408713794,1774164679962,-158.781396,0.00043836,120]
[408713795,1774164679972,-158.781396,0.00043836,120]
[408713796,1774164679982,-158.781396,0.00043836,120]
[408713797,1774164679992,-158.781396,0.00043836,120]
[408713798,1774164680003,-151.0,0.00043836,120]
[408713799,1774164680013,-266.366343,0.00043836,120]
[408713800,1774164680023,-151.0,0.00043836,120]
[408713801,1774164680033,-151.0,0.00043836,120]
[408713802,1774164680042,-151.0,0.00043836,120]
[408713803,1774164680052,-151.0,0.00043836,120]
[408713804,1774164680062,-151.0,0.00043836,120]
[408713805,1774164680072,-151.0,0.00043836,120]
[408713806,1774164680082,-225.501863,0.00043836,120]
[408713807,1774164680091,-151.0,0.00043836,120]
[408713808,1774164680101,-151.0,0.00043836,120]
[408713809,1774164680111,-151.0,0.00043836,120]
[408713810,1774164680121,-151.0,0.00043836,120]
[408713811,1774164680131,-151.0,0.00043836,120]
[408713812,1774164680141,-151.0,0.00043836,120]
[408713813,1774164680151,-151.0,0.00043836,120]
[408713814,1774164680161,-151.0,0.00043836,120]
[408713815,1774164680171,-151.0,0.00043836,120]
[408713816,1774164680181,-151.0,0.00043836,120]
[408713817,1774164680191,-151.0,0.00043836,120]
[408713818,1774164680201,-151.0,0.00043836,120]
[408713819,1774164680211,-151.0,0.00043836,120]
[408713820,1774164680222,-247.065155,0.00043836,120]
[408713821,1774164680232,-151.0,0.00043836,2]
[408713822,1774164680243,-151.0,0.00043836,2]
[408713823,1774164680253,-151.0,0.00043836,2]
[408713824,1774164680263,-151.0,0.00043836,2]
[408713825,1774164680273,-151.0,0.00043836,2]
[408713826,1774164680284,-151.0,0.00043836,2]
[408713827,1774164680294,-151.0,0.00043836,2]
[408713828,1774164680304,-151.0,0.00043836,2]
[408713829,1774164680314,-204.590242,0.00043836,2]
[408713830,1774164680324,-554.79161,0.00043836,7]
[408713831,1774164680334,-554.79161,0.00043836,7]
[408713832,1774164680344,-554.79161,0.00043836,7]
[408713833,1774164680354,-554.79161,0.00043836,7]
[408713834,1774164680365,-554.79161,0.00043836,7]
[408713835,1774164680377,-554.79161,0.00043836,7]
[408713836,1774164680387,-554.79161,0.00043836,7]
[408713837,1774164680398,-554.79161,0.00043836,7]
[408713838,1774164680411,-554.79161,0.00043836,7]
[408713839,1774164680422,-554.79161,0.00043836,7]
[408713840,1774164680432,-554.79161,0.00043836,7]
[408713841,1774164680443,-554.79161,0.00043836,7]
[408713842,1774164680453,-554.79161,0.00043836,7]
[408713843,1774164680465,-554.79161,0.00043836,7]
[408713844,1774164680476,-554.79161,0.00043836,7]
[408713845,1774164680486,-554.79161,0.00043836,7]
[408713846,1774164680496,-554.79161,0.00043836,7]
[408713847,1774164680506,-554.79161,0.00043836,7]
[408713848,1774164680516,-554.79161,0.00043836,7]
[408713849,1774164680525,-554.7916,0.00043836,7]
[408713850,1774164680535,-530.375847,0.00043836,120]
[408713851,1774164680546,-530.375847,0.00043836,120]
[408713852,1774164680556,-530.375847,0.00043836,120]
[408713853,1774164680565,-530.375847,0.00043836,120]
[408713854,1774164680575,-530.375847,0.00043836,120]
[408713855,1774164680585,-530.375847,0.00043836,120]
[408713856,1774164680595,-530.375847,0.00043836,120]
[408713857,1774164680604,-530.375847,0.00043836,120]
[408713858,1774164680700,-530.375847,0.00043836,120]
[408713859,1774164680710,-530.375847,0.00043836,120]
[408713860,1774164680721,-530.375847,0.00043836,120]
[408713861,1774164680731,-530.375847,0.00043836,120]
[408713862,1774164680740,-530.375847,0.00043836,120]
[408713863,1774164680751,-530.375847,0.00043836,120]
[408713864,1774164680761,-530.375847,0.00043836,120]
[408713865,1774164680773,-530.375847,0.00043836,120]
[408713866,1774164680783,-530.375847,0.00043836,120]
[408713867,1774164680794,-530.375847,0.00043836,120]
[408713868,1774164680804,-530.375847,0.00043836,120]
[408713869,1774164680814,-530.375844,0.00043836,120]
[408713870,1774164680823,-163.641779,0.00043836,120]
[408713871,1774164680833,-213.933025,0.00043836,120]
[408713872,1774164680843,-151.0,0.00043836,120]
[408713873,1774164680853,-151.0,0.00043836,120]
[408713874,1774164680862,-151.0,0.00043836,120]
[408713875,1774164680872,-151.0,0.00043836,120]
[408713876,1774164680881,-175.099106,0.00043836,120]
[408713877,1774164680890,-151.0,0.00043836,120]
[408713878,1774164680899,-151.0,0.00043836,120]
[408713879,1774164680908,-151.0,0.00043836,120]
[408713880,1774164680917,-151.0,0.00043836,120]
[408713881,1774164680927,-151.0,0.00043836,120]
[408713882,1774164680936,-151.0,0.00043836,120]
[408713883,1774164680946,-151.0,0.00043836,120]
[408713884,1774164680956,-151.0,0.00043836,120]
[408713885,1774164680967,-151.0,0.00043836,120]
[408713886,1774164680978,-151.0,0.00043836,120]
[408713887,1774164680988,-247.455955,0.00043836,120]
[408713888,1774164680998,-151.0,0.00043836,120]
[408713889,1774164681008,-164.198275,0.00043836,120]
[408713890,1774164681018,-269.686166,0.00043836,120]
[408713891,1774164681028,-151.0,0.00043836,120]
[408713892,1774164681038,-151.0,0.00043836,120]
[408713893,1774164681049,-151.0,0.00043836,120]
[408713894,1774164681060,-151.0,0.00043836,120]
[408713895,1774164681069,-151.0,0.00043836,120]
[408713896,1774164681079,-151.0,0.00043836,120]
[408713897,1774164681089,-151.0,0.00043836,120]
[408713898,1774164681100,-151.0,0.00043836,120]
[408713899,1774164681110,-151.0,0.00043836,120]
[408713900,1774164681121,-151.0,0.00043836,120]
[408713901,1774164681130,-151.0,0.00043836,120]
[408713902,1774164681140,-151.0,0.00043836,120]
[408713903,1774164681150,-198.59454,0.00043836,120]
[408713904,1774164681159,-151.0,0.00043836,120]
[408713905,1774164681169,-151.0,0.00043836,120]
[408713906,1774164681178,-151.0,0.00043836,120]
[408713907,1774164681189,-151.0,0.00043836,120]
[408713908,1774164681199,-151.0,0.00043836,120]
[408713909,1774164681208,-209.226763,0.00043836,120]
[408713910,1774164681218,-247.412616,0.00043836,120]
[408713911,1774164681227,-151.0,0.00043836,7]
[408713912,1774164681237,-151.0,0.00043836,7]
[408713913,1774164681246,-151.0,0.00043836,7]
[408713914,1774164681256,-151.0,0.00043836,7]
[408713915,1774164681265,-151.0,0.00043836,7]
[408713916,1774164681275,-244.95,0.00043836,7]
[408713917,1774164681285,-171.877902,0.00043836,120]
[408713918,1774164681294,-151.0,0.00043836,120]
[408713919,1774164681304,-151.0,0.00043836,120]
[408713920,1774164681314,-151.0,0.00043836,120]
[408713921,1774164681324,-151.0,0.00043836,120]
[408713922,1774164681334,-151.0,0.00043836,120]
[408713923,1774164681343,-151.0,0.00043836,120]
[408713924,1774164681353,-282.471647,0.00043836,120]
[408713925,1774164681363,-256.414623,0.00043836,120]
[408713926,1774164681372,-283.024864,0.00043836,120]
[408713927,1774164681382,-9809.927336,0.00043836,14]
[408713928,1774164681392,-9809.927336,0.00043836,14]
[408713929,1774164681404,-9809.927336,0.00043836,14]
[408713930,1774164681414,-9809.927336,0.00043836,14]
[408713931,1774164681424,-9809.927336,0.00043836,14]
[408713932,1774164681434,-9809.927336,0.00043836,14]
[408713933,1774164681443,-151.0,0.00043836,120]
[408713934,1774164681453,-9809.927336,0.00043836,14]
[408713935,1774164681463,-151.0,0.00043836,120]
[408713936,1774164681473,-9809.927336,0.00043836,14]
[408713937,1774164681483,-151.0,0.00043836,120]
[408713938,1774164681492,-9809.927336,0.00043836,14]
[408713939,1774164681502,-151.0,0.00043836,120]
[408713940,1774164681511,-9809.927336,0.00043836,14]
[408713941,1774164681521,-151.0,0.00043836,120]
[408713942,1774164681531,-9809.927336,0.00043836,14]
[408713943,1774164681540,-9809.927336,0.00043836,14]
[408713944,1774164681550,-9809.927336,0.00043836,14]
[408713945,1774164681559,-9809.927336,0.00043836,14]
[408713946,1774164681568,-9809.927336,0.00043836,14]
[408713947,1774164681578,-9809.927336,0.00043836,14]
[408713948,1774164681587,-9809.927336,0.00043836,14]
[408713949,1774164681597,-9809.927336,0.00043836,14]
[408713950,1774164681606,-9809.927336,0.00043836,14]
[408713951,1774164681616,-9809.927331,0.00043836,14]
[408713952,1774164681625,-167.325115,0.00043836,120]
[408713953,1774164681635,-167.325115,0.00043836,120]
[408713954,1774164681644,-167.325115,0.00043836,120]
[408713955,1774164681654,-167.325115,0.00043836,120]
[408713956,1774164681663,-167.325115,0.00043836,120]
[408713957,1774164681673,-167.325115,0.00043836,120]
[408713958,1774164681682,-167.325115,0.00043836,120]
[408713959,1774164681691,-760.396819,0.00043836,120]
[408713960,1774164681701,-167.325115,0.00043836,120]
[408713961,1774164681711,-760.396819,0.00043836,120]
[408713962,1774164681722,-167.325115,0.00043836,120]
[408713963,1774164681733,-760.396819,0.00043836,120]
[408713964,1774164681742,-167.325115,0.00043836,120]
[408713965,1774164681751,-760.396819,0.00043836,120]
[408713966,1774164681762,-167.325115,0.00043836,120]
[408713967,1774164681772,-760.396819,0.00043836,120]
[408713968,1774164681783,-167.325115,0.00043836,120]
[408713969,1774164681793,-760.396819,0.00043836,120]
[408713970,1774164681802,-167.325115,0.00043836,120]
[408713971,1774164681811,-760.396819,0.00043836,120]
[408713972,1774164681820,-167.325115,0.00043836,120]
[408713973,1774164681829,-760.396819,0.00043836,120]
[408713974,1774164681838,-167.325115,0.00043836,120]
[408713975,1774164681847,-760.396819,0.00043836,120]
[408713976,1774164681857,-167.325115,0.00043836,120]
[408713977,1774164681866,-760.396819,0.00043836,120]
[408713978,1774164681876,-167.325115,0.00043836,120]
[408713979,1774164681885,-760.396819,0.00043836,120]
[408713980,1774164681894,-167.325115,0.00043836,120]
[408713981,1774164681904,-760.396819,0.00043836,120]
[408713982,1774164681913,-167.325115,0.00043836,120]
[408713983,1774164681922,-167.32511,0.00043836,120]
[408713984,1774164681931,-760.396819,0.00043836,120]
[408713985,1774164681940,-760.396819,0.00043836,120]
[408713986,1774164681949,-760.396819,0.00043836,120]
[408713987,1774164681959,-760.396819,0.00043836,120]
[408713988,1774164681967,-760.396819,0.00043836,120]
[408713989,1774164681976,-760.396819,0.00043836,120]
[408713990,1774164681986,-760.396819,0.00043836,120]
[408713991,1774164681995,-760.396812,0.00043836,120]
[408713992,1774164682004,-151.0,0.00043836,120]
[408713993,1774164682013,-198.246305,0.00043836,120]
[408713994,1774164682022,-151.0,0.00043836,120]
[408713995,1774164682115,-163.212959,0.00043836,120]
[408713996,1774164682125,-275.639747,0.00043836,120]
[408713997,1774164682135,-151.0,0.00043836,15]
[408713998,1774164682144,-151.0,0.00043836,15]
[408713999,1774164682153,-151.0,0.00043836,15]
[408714000,1774164682163,-151.0,0.00043836,120]
[408714001,1774164682172,-151.0,0.00043836,15]
[408714002,1774164682182,-153.507945,0.00043836,120]
[408714003,1774164682193,-151.0,0.00043836,15]
[408714004,1774164682202,-151.0,0.00043836,15]
[408714005,1774164682212,-151.0,0.00043836,15]
[408714006,1774164682221,-151.0,0.00043836,15]
[408714007,1774164682231,-180.595295,0.00043836,120]
[408714008,1774164682240,-151.0,0.00043836,15]
[408714009,1774164682250,-151.0,0.00043836,15]
[408714010,1774164682260,-156.806577,0.00043836,15]
[408714011,1774164682270,-283.148774,0.00043836,120]
[408714012,1774164682279,-283.148774,0.00043836,120]
[408714013,1774164682289,-283.148774,0.00043836,120]
[408714014,1774164682299,-283.148774,0.00043836,120]
[408714015,1774164682308,-283.148774,0.00043836,120]
[408714016,1774164682318,-283.148774,0.00043836,120]
[408714017,1774164682327,-283.148774,0.00043836,120]
[408714018,1774164682337,-283.148774,0.00043836,120]
[408714019,1774164682347,-283.148774,0.00043836,120]
[408714020,1774164682356,-283.148774,0.00043836,120]
[408714021,1774164682366,-283.148774,0.00043836,120]
[408714022,1774164682376,-283.148774,0.00043836,120]
[408714023,1774164682386,-275.677501,0.00043836,120]
[408714024,1774164682397,-283.148774,0.00043836,120]
[408714025,1774164682410,-275.677501,0.00043836,120]
[408714026,1774164682420,-283.148774,0.00043836,120]
[408714027,1774164682429,-275.677501,0.00043836,120]
[408714028,1774164682439,-283.148774,0.00043836,120]
[408714029,1774164682449,-275.677501,0.00043836,120]
[408714030,1774164682459,-283.148774,0.00043836,120]
[408714031,1774164682470,-275.677501,0.00043836,120]
[408714032,1774164682479,-283.148774,0.00043836,120]
[408714033,1774164682489,-275.677501,0.00043836,120]
[408714034,1774164682499,-283.148774,0.00043836,120]
[408714035,1774164682508,-275.677501,0.00043836,120]
[408714036,1774164682518,-275.677501,0.00043836,120]
[408714037,1774164682528,-283.148774,0.00043836,120]
[408714038,1774164682538,-275.677501,0.00043836,120]
[408714039,1774164682547,-283.148773,0.00043836,120]
[408714040,1774164682556,-275.677501,0.00043836,120]
[408714041,1774164682565,-275.677501,0.00043836,120]
[408714042,1774164682574,-275.677501,0.00043836,120]
[408714043,1774164682584,-275.677501,0.00043836,120]
[408714044,1774164682593,-275.677501,0.00043836,120]
[408714045,1774164682602,-275.677501,0.00043836,120]
[408714046,1774164682612,-254.267949,0.00043836,120]
[408714047,1774164682621,-275.677501,0.00043836,120]
[408714048,1774164682631,-254.267949,0.00043836,120]
[408714049,1774164682640,-275.677501,0.00043836,120]
[408714050,1774164682650,-254.267949,0.00043836,120]
[408714051,1774164682659,-275.677501,0.00043836,120]
[408714052,1774164682668,-254.267949,0.00043836,120]
[408714053,1774164682676,-275.677501,0.00043836,120]
[408714054,1774164682685,-254.267949,0.00043836,120]
[408714055,1774164682694,-275.677501,0.00043836,120]
[408714056,1774164682704,-254.267949,0.00043836,120]
[408714057,1774164682713,-150.0,0.00043837,30]
[408714058,1774164682722,-84474.28839663,0.000439,7]
[408714059,1774164682731,-10000.4853964,0.00043949,2]
[408714060,1774164682740,-150.0,0.00043975,30]
[408714061,1774164682749,-824.87,0.0004398,30]
[408714062,1774164682758,-156.80204225,0.00043989,2]
[408714063,1774164682767,-70940.53971777,0.00044,2]
[408714064,1774164682776,-250.0,0.00044,3]
[408714065,1774164682785,-500.0,0.00044,120]
[408714066,1774164682793,-1000.0,0.00044,120]
[408714067,1774164682803,-172.22352432,0.00044,120]
[408714068,1774164682812,-437.978472,0.00044,57]
[408714069,1774164682822,-2358.65,0.00044,30]
[408714070,1774164682832,-1294.0,0.00044058,30]
[408714071,1774164682843,-350.0,0.00044058,30]
[408714072,1774164682853,-239.0,0.00044058,30]
[408714073,1774164682863,-185.34314008,0.0004408,2]
[408714074,1774164682874,-1990.0,0.00044109,120]
[408714075,1774164682898,-300.0,0.0004411,30]
[408714076,1774164682920,-300.0,0.0004411,30]
[408714077,1774164682942,-257.0,0.0004411,30]
[408714078,1774164682964,-150.0,0.00044113,30]
[408714079,1774164682987,-746.0,0.00044134,30]
[408714080,1774164683011,-13465.35034516,0.000442,7]
[408714081,1774164683033,-150.0,0.00044251,30]
[408714082,1774164683055,-156.80204225,0.00044263,2]
[408714083,1774164683079,-150.0,0.00044281,120]
[408714084,1774164683102,-1990.0,0.00044383,120]
[408714085,1774164683125,-150.0,0.0004439,30]
[408714086,1774164683148,-151.0,0.00044521,120]
[408714087,1774164683171,-182.2465,0.00044521,120]
[408714088,1774164683193,-150.0,0.00044528,30]
[408714089,1774164683217,-156.80204225,0.00044537,2]
[408714090,1774164683227,-1990.0,0.00044657,120]
[408714091,1774164683237,-150.0,0.00044666,30]
[408714092,1774164683246,-494.50541069,0.00044767,2]
[408714093,1774164683255,-1000.0,0.00044767,2]
[408714094,1774164683265,-1515.31187087,0.00044767,2]
[408714095,1774164683274,-150.0,0.00044805,30]
[408714096,1774164683284,-156.80204225,0.00044811,2]
[408714097,1774164683293,-15018.46203116,0.0004488,120]
[408714098,1774164683303,-320214.56528557,0.000449,30]
[408714099,1774164683313,-1990.0,0.00044931,120]
[408714100,1774164683323,-150.0,0.00044943,30]
[408714101,1774164683332,-9418.66,0.00044972,30]
[408714102,1774164683342,-612.00588193,0.00045,10]
[408714103,1774164683352,-655.59812795,0.00045,2]
[408714104,1774164683361,-164.12745581,0.00045,10]
[408714105,1774164683370,-736.4113271,0.00045,10]
[408714106,1774164683380,-300.0,0.00045,10]
[408714107,1774164683389,-20006.0,0.00045,2]
[408714108,1774164683402,-316.0,0.00045,14]
[408714109,1774164683412,-473.44411842,0.00045,7]
[408714110,1774164683421,-728.9362305,0.00045,2]
[408714111,1774164683432,-20871.57804007,0.00045,30]
[408714112,1774164683443,-35627.45238827,0.00045,30]
[408714113,1774164683452,-3485.73263015,0.00045,120]
[408714114,1774164683462,-587.0,0.00045,120]
[408714115,1774164683471,-31592.52108605,0.00045,120]
[408714116,1774164683481,-166.06011833,0.00045,120]
[408714117,1774164683490,-162.0,0.00045,120]
[408714118,1774164683499,-6270.13259,0.00045,120]
[408714119,1774164683509,-5554.0,0.00045,120]
[408714120,1774164683518,-150.65,0.00045,120]
[408714121,1774164683528,-160259.0,0.00045,60]
[408714122,1774164683537,-161.4173276,0.00045,120]
[408714123,1774164683546,-161.70309785,0.00045,14]
[408714124,1774164683555,-334.97,0.00045,120]
[408714125,1774164683564,-711.71,0.00045,120]
[408714126,1774164683574,-400.94,0.00045,120]
[408714127,1774164683583,-364.51,0.00045,120]
[408714128,1774164683592,-5000.0,0.00045,120]
[408714129,1774164683601,-5000.0,0.00045,120]
[408714130,1774164683609,-5000.0,0.00045,120]
[408714131,1774164683617,-5000.0,0.00045,120]
[408714132,1774164683625,-5000.0,0.00045,120]
[408714133,1774164683634,-5000.0,0.00045,120]
[408714134,1774164683642,-5000.0,0.00045,120]
[408714135,1774164683650,-5000.0,0.00045,120]
[408714136,1774164683658,-5000.0,0.00045,120]
[408714137,1774164683667,-5000.0,0.00045,120]
[408714138,1774164683675,-5000.0,0.00045,120]
[408714139,1774164683684,-7006.0,0.00045,120]
[408714140,1774164683693,-2466.0,0.00045012,2]
[408714141,1774164683702,-150.0,0.00045081,30]
[408714142,1774164683710,-156.80204225,0.00045085,2]
[408714143,1774164683719,-305.65040171,0.00045098,120]
[408714144,1774164683728,-2000.0,0.000451,2]
[408714145,1774164683737,-1990.0,0.00045205,120]
[408714146,1774164683745,-150.0,0.00045219,30]
[408714147,1774164683754,-5000.0,0.000453,120]
[408714148,1774164683763,-151.0,0.000453,120]
[408714149,1774164683772,-4160.67,0.00045333,120]
[408714150,1774164683782,-150.0,0.00045358,30]
[408714151,1774164683790,-156.80204225,0.00045359,2]
[408714152,1774164683799,-1990.0,0.00045479,120]
[408714153,1774164683809,-150.0,0.00045496,30]
[408714154,1774164683818,-248.56199898,0.00045579,7]
[408714155,1774164683826,-181.0,0.000456,120]
[408714156,1774164683835,-156.80204225,0.00045633,2]
[408714157,1774164683844,-150.0,0.00045634,30]
[408714158,1774164683853,-986.372,0.00045661,2]
[408714159,1774164683863,-396.32047601,0.00045735,120]
[408714160,1774164683876,-1990.0,0.00045753,120]
[408714161,1774164683897,-150.0,0.00045773,30]
[408714162,1774164683920,-1000.0,0.000458,30]
[408714163,1774164683941,-10000.0,0.000459,120]
[408714164,1774164683962,-156.80204225,0.00045907,2]
[408714165,1774164683984,-150.0,0.00045911,30]
[408714166,1774164684005,-345.04,0.00046,10]
[408714167,1774164684025,-502.57937769,0.00046,2]
[408714168,1774164684046,-15000.0,0.00046,120]
[408714169,1774164684066,-500.0,0.00046,120]
[408714170,1774164684086,-800.0,0.00046,120]
[408714171,1774164684107,-1000.0,0.00046,30]
[408714172,1774164684128,-1000.0,0.00046,60]
[408714173,1774164684150,-1000.0,0.00046,90]
[408714174,1774164684171,-10000.0,0.00046,90]
[408714175,1774164684193,-1201.42754753,0.00046,14]